bitfinex-derivatives/quotes_BNBF0:USTF0_20250810
["timestamp","ask_amount","ask_price","bid_price","bid_amount"]
[1754833298465,1.1076429,799.24,797.93,0.5]
[1754833298764,1.6614644,799.38,797.93,0.5]
[1754833298765,1.1076429,799.23,797.93,0.5]
[1754833299066,1.1076429,799.25,797.93,0.5]
[1754833299565,1.1076429,799.39,797.94,1.1084401]
[1754833301063,1.1076429,799.39,797.93,1.6084401]
[1754833301266,1.1076429,799.38,797.94,1.1084401]
[1754833301867,1.1076429,799.39,797.93,1.6084401]
[1754833302264,1.1076429,799.41,797.96,1.1084401]
[1754833302864,1.1076429,799.42,797.95,1.1084401]
[1754833303069,1.1076429,799.49,798.02,1.1084401]
[1754833304166,1.1076429,799.51,798.04,1.1084401]
[1754833304766,1.1076429,799.52,798.05,1.1084401]
[1754833305171,0.83262599,799.35,798.05,1.1084401]
[1754833305368,0.83262599,799.36,798.04,1.1084401]
[1754833306672,0.83262599,799.35,798.05,1.1084401]
[1754833306868,0.83262599,799.4,798.03,1.1084401]
[1754833307074,0.83262599,799.43,798.06,1.1084401]
[1754833307273,0.83262599,799.42,798.06,1.1084401]
[1754833307473,0.83262599,799.43,798.06,1.1084401]
[1754833307775,0.83262599,799.42,798.07,1.1084401]
[1754833308270,0.83262599,799.41,798.08,1.1084401]
[1754833308474,0.83262599,799.45,798.18,0.5]
[1754833309174,0.83262599,799.44,798.18,0.5]
[1754833309367,0.83262599,799.46,798.18,0.5]
[1754833309568,0.83262599,799.47,798.41,0.348]
[1754833309774,0.83262599,799.47,798.33,0.5]
[1754833310075,0.83262599,799.44,798.33,0.5]
[1754833311274,0.83262599,799.43,798.33,0.5]
[1754833311775,0.83262599,799.4,798.33,0.5]
[1754833312276,0.83262599,799.39,798.25,0.5]
[1754833312572,0.83262599,799.32,798.25,0.5]
[1754833312876,0.83262599,799.3,798.25,0.5]
[1754833313272,0.83262599,799.28,798.25,0.5]
[1754833313472,0.83262599,799.26,798.25,0.5]
[1754833314375,0.83262599,799.22,798.19,0.348]
[1754833314576,0.83262599,799.22,798.18,0.5]
[1754833314781,0.83262599,799.23,798.18,0.5]
[1754833314979,0.83262599,799.15,798.18,0.5]
[1754833315379,0.83262599,799.08,798.18,0.5]
[1754833316179,0.63262599,799.08,798.18,0.5]
[1754833316381,0.63262599,799.05,798.18,0.5]
[1754833316681,1.1076429,799.21,798.18,0.5]
[1754833317377,1.1076429,799.19,798.18,0.5]
[1754833318277,1.1076429,799.16,798.18,0.5]
[1754833319381,1.1076429,799.14,798.18,0.5]
[1754833319979,1.1076429,799.19,798.18,0.5]
[1754833320182,1.1076429,799.21,798.18,0.5]
[1754833320482,1.1076429,799.23,798.2,1.1084401]
[1754833320881,1.1076429,799.24,798.2,1.1084401]
[1754833321180,1.1076429,799.27,798.18,1.6084401]
[1754833321384,1.1076429,799.28,798.18,0.5]
[1754833322083,1.1076429,799.26,798.18,1.6084401]
[1754833324284,1.1076429,799.26,798.18,0.5]
[1754833324482,1.1076429,799.29,798.18,0.5]
[1754833324888,1.1076429,799.4,798.26,1.1084401]
[1754833325686,1.1076429,799.35,798.18,1.6084401]
[1754833325981,1.1076429,799.32,798.18,0.5]
[1754833326487,1.1076429,799.27,798.1,1.1084401]
[1754833326887,1.1076429,799.26,798.09,1.1084401]
[1754833327087,1.1076429,799.27,798.09,1.1084401]
[1754833327686,1.1076429,799.27,798.04,0.5]
[1754833327687,1.1076429,799.24,798.06,1.1084401]
[1754833327983,1.1076429,799.24,798.06,1.4524401]
[1754833328290,2.7957214,800.08,798.08,1.1084401]
[1754833328291,1.1076429,799.22,798.08,1.1084401]
[1754833328588,1.1076429,799.18,798.04,0.5]
[1754833328887,1.1076429,799.14,798.06,1.1084401]
[1754833331689,1.1076429,799.15,798.05,1.1084401]
[1754833334385,1.1076429,799.16,798.05,1.1084401]
[1754833334887,1.1076429,799.06,798.04,0.5]
[1754833335688,1.1076429,799.1,798.04,0.5]
[1754833336887,1.1076429,799.13,798.04,1.6084401]
[1754833337091,1.1076429,799.16,798.08,1.1084401]
[1754833337289,1.1076429,799.16,798.07,1.1084401]
[1754833337687,1.1076429,799.16,798.08,1.1084401]
[1754833338192,1.1076429,799.2,798.12,1.1084401]
[1754833338391,3.91401,800.23,798.17,1.1084401]
[1754833338392,1.1076429,799.23,798.17,1.1084401]
[1754833339794,1.1076429,799.61,798.11,1.1084401]
[1754833340294,1.1076429,799.63,798.1,1.1084401]
[1754833340993,1.1076429,799.64,798.1,1.1084401]
[1754833341896,1.1076429,799.63,798.1,1.1084401]
[1754833342096,1.1076429,799.62,798.07,1.1084401]
[1754833342393,1.1076429,799.37,798.06,1.1084401]
[1754833342897,1.1076429,799.38,798.06,1.1084401]
[1754833343198,1.1076429,799.35,798.08,1.1084401]
[1754833344599,1.1076429,799.34,798.09,1.1084401]
[1754833344800,1.1076429,799.32,798.09,1.1084401]
[1754833347498,1.1076429,799.35,798.13,1.1084401]
[1754833350304,1.1076429,799.34,798.12,1.1084401]
[1754833351104,1.1076429,799.35,798.13,1.1084401]
[1754833351602,1.1076429,799.34,798.13,1.1084401]
[1754833352103,1.1076429,799.32,798.15,1.1084401]
[1754833352904,1.1076429,799.3,798.17,1.1084401]
[1754833353306,1.1076429,799.29,798.17,1.1084401]
[1754833354101,1.1076429,799.29,798.18,1.1084401]
[1754833354503,1.1076429,799.24,798.21,1.1084401]
[1754833354707,1.1076429,799.25,798.22,1.1084401]
[1754833355207,1.1076429,799.3,798.18,1.1084401]
[1754833355408,1.1076429,799.29,798.18,1.1084401]
[1754833355708,1.1076429,799.33,798.24,1.1084401]
[1754833356106,1.1076429,799.32,798.25,1.1084401]
[1754833357005,1.1076429,799.32,798.26,1.1084401]
[1754833357506,1.1076429,799.31,798.25,1.1084401]
[1754833358010,1.1076429,799.32,798.27,1.1084401]
[1754833360615,1.1076429,799.32,798.26,1.1084401]
[1754833361215,1.1076429,799.26,798.25,1.1084401]
[1754833361416,1.1076429,799.21,798.2,1.6084401]
[1754833362014,1.1076429,799.18,798.2,0.5]
[1754833362210,1.1076429,799.17,798.04,0.5]
[1754833362415,1.1076429,799.16,798.04,0.5]
[1754833362616,1.1076429,799.03,798.04,0.5]
[1754833362812,1.1076429,799.04,797.99,0.348]
[1754833363111,1.1076429,799.09,797.98,0.5]
[1754833364214,1.1076429,799.1,797.98,0.5]
[1754833364816,1.1076429,799.09,797.98,0.5]
[1754833365116,1.1076429,799.1,797.98,0.5]
[1754833366116,1.1076429,799.11,797.98,0.5]
[1754833367316,1.1076429,799.14,797.98,0.5]
[1754833368413,1.1076429,799.13,797.98,0.5]
[1754833369214,1.1076429,799.14,797.98,0.5]
[1754833370017,1.1076429,799.13,797.98,0.5]
[1754833370817,1.1076429,799.16,797.98,0.5]
[1754833371018,1.1076429,799.14,797.98,0.5]
[1754833371822,1.1076429,799.15,797.98,0.5]
[1754833372723,1.1076429,799.12,797.99,1.1084401]
[1754833373926,1.1076429,799.14,798.01,1.1084401]
[1754833374427,1.1076429,799.14,798.02,1.1084401]
[1754833374724,1.1076429,799.14,798.04,1.1084401]
[1754833374928,1.1076429,799.29,798.2,1.1084401]
[1754833375128,1.1076429,799.3,798.23,1.1084401]
[1754833375427,1.1076429,799.34,798.25,1.1084401]
[1754833375824,1.1076429,799.36,798.27,1.1084401]
[1754833376126,1.1076429,799.34,798.28,1.1084401]
[1754833376323,0.83525654,799.2,798.28,1.1084401]
[1754833376623,0.83525654,799.19,798.29,1.1084401]
[1754833376822,0.83525654,799.22,798.31,1.1084401]
[1754833377628,0.83525654,799.27,798.36,1.1084401]
[1754833381624,0.83525654,799.27,798.35,1.1084401]
[1754833383530,0.83525654,799.28,798.35,1.1084401]
[1754833384834,0.83525654,799.16,798.23,1.1084401]
[1754833385027,0.83525654,799.16,798.24,1.1084401]
[1754833385934,0.63525654,799.16,798.24,1.1084401]
[1754833386132,1.1076429,799.29,798.25,1.1084401]
[1754833386532,1.1076429,799.29,797.98,0.5]
[1754833386533,1.1076429,799.27,798.27,1.1084401]
[1754833388037,1.6614644,799.38,797.98,0.5]
[1754833388038,1.1076429,799.25,798.24,1.1084401]
[1754833389135,1.1076429,799.24,798.24,1.1084401]
[1754833390437,1.1076429,799.24,798.25,1.1084401]
[1754833391643,1.1076429,799.25,798.26,1.1084401]
[1754833392143,1.6614644,799.38,798.26,1.1084401]
[1754833392144,1.1076429,799.24,798.26,1.1084401]
[1754833394248,1.1076429,799.24,798.27,1.1084401]
[1754833395044,1.1076429,799.25,798.28,1.1084401]
[1754833395246,1.1076429,799.25,798.29,1.1084401]
[1754833396243,1.1076429,799.24,798.29,1.1084401]
[1754833401955,1.1076429,799.23,798.21,1.1084401]
[1754833402955,5.80894348,800.55,797.98,0.5]
[1754833402956,1.1076429,799.28,798.17,1.1084401]
[1754833403253,1.1076429,799.29,798.17,1.1084401]
[1754833403553,1.1076429,799.28,798.17,1.1084401]
[1754833404856,1.1076429,799.28,798.16,1.1084401]
[1754833405556,1.1076429,799.28,798.17,1.1084401]
[1754833407058,1.6614644,799.45,798.0,1.6629355]
[1754833407059,1.1076429,799.29,798.16,1.1084401]
[1754833407358,1.1076429,799.28,798.16,1.1084401]
[1754833407960,1.1076429,799.33,798.22,1.1084401]
[1754833410457,1.1076429,799.35,798.24,1.1084401]
[1754833411958,1.1076429,799.33,798.25,1.1084401]
[1754833412761,1.1076429,799.26,798.31,1.1084401]
[1754833413163,1.1076429,799.27,798.31,1.1084401]
[1754833413362,1.1076429,799.26,798.31,1.1084401]
[1754833414865,1.1076429,799.27,798.31,1.1084401]
[1754833415662,1.1076429,799.24,798.28,1.1084401]
[1754833416163,1.1076429,799.21,798.23,1.1084401]
[1754833416461,1.1076429,799.2,798.23,1.1084401]
[1754833416661,1.1076429,799.19,798.21,1.1084401]
[1754833416862,1.1076429,799.15,798.19,1.1084401]
[1754833417075,1.1076429,799.07,798.12,1.1084401]
[1754833417272,1.1076429,799.07,798.11,1.1084401]
[1754833417464,1.1076429,799.0,798.04,1.1084401]
[1754833418070,1.1076429,799.04,797.98,0.5]
[1754833418275,1.1076429,798.99,797.98,0.5]
[1754833418568,1.1076429,798.98,797.94,0.348]
[1754833418770,1.1076429,798.98,797.9,1.6084401]
[1754833418967,1.1076429,799.0,797.92,1.1084401]
[1754833419378,1.1076429,799.0,797.91,1.1084401]
[1754833419585,1.1076429,799.01,797.92,1.1084401]
[1754833420476,1.1076429,799.16,798.02,1.1084401]
[1754833421384,1.1076429,799.16,798.01,1.1084401]
[1754833421778,1.1076429,799.17,798.01,1.1084401]
[1754833422281,1.1076429,799.14,798.03,1.1084401]
[1754833422482,1.1076429,799.13,798.05,1.1084401]
[1754833423079,1.1076429,799.12,798.06,1.1084401]
[1754833423280,1.1076429,799.15,798.1,1.1084401]
[1754833423677,1.1076429,799.15,798.13,1.1084401]
[1754833423878,1.1076429,799.16,798.14,1.1084401]
[1754833424380,1.1076429,799.24,798.17,1.1084401]
[1754833424881,1.1076429,799.33,798.27,1.1084401]
[1754833426183,1.1076429,799.33,798.28,1.1084401]
[1754833426479,1.1076429,799.32,798.28,1.1084401]
[1754833426681,1.1076429,799.35,798.31,1.1084401]
[1754833427281,1.1076429,799.34,798.31,1.1084401]
[1754833427983,1.1076429,799.33,798.31,1.1084401]
[1754833428284,1.1076429,799.31,798.29,1.1084401]
[1754833429186,1.1076429,799.3,798.3,1.1084401]
[1754833429586,1.1076429,799.29,798.31,1.1084401]
[1754833431287,1.1076429,799.28,798.32,1.1084401]
[1754833431785,1.1076429,799.24,798.26,1.1084401]
[1754833431983,1.1076429,799.22,798.24,1.1084401]
[1754833432482,1.1076429,799.24,798.23,1.1084401]
[1754833433187,1.1076429,799.23,798.23,1.1084401]
[1754833434289,1.1076429,799.2,798.26,1.1084401]
[1754833434487,1.1076429,799.17,798.23,1.1084401]
[1754833434884,1.1076429,799.06,798.11,1.1084401]
[1754833436586,1.1076429,799.05,798.12,1.1084401]
[1754833436992,1.1076429,799.05,798.13,1.1084401]
[1754833437287,1.1076429,799.08,798.1,1.1084401]
[1754833438892,1.1076429,799.04,798.07,1.1084401]
[1754833439091,1.1076429,799.02,798.04,1.1084401]
[1754833439289,1.1076429,799.01,798.02,1.1084401]
[1754833439690,1.1076429,799.0,798.02,1.1084401]
[1754833439890,1.1076429,799.03,798.02,1.1084401]
[1754833440893,1.1076429,799.02,798.02,1.1084401]
[1754833441190,1.1076429,799.03,798.03,1.1084401]
[1754833441387,1.1076429,799.03,798.05,1.1084401]
[1754833441692,1.1076429,799.05,798.05,1.1084401]
[1754833442089,1.1076429,799.05,798.04,1.1084401]
[1754833442294,1.1076429,799.04,798.06,1.1084401]
[1754833442992,1.1076429,799.03,798.05,1.1084401]
[1754833443389,1.1076429,799.02,797.98,1.1084401]
[1754833443588,1.1076429,799.01,797.98,1.1084401]
[1754833443895,1.1076429,799.06,797.94,1.1084401]
[1754833444088,1.1076429,799.05,797.92,1.1084401]
[1754833444790,1.1076429,799.08,797.95,1.1084401]
[1754833445190,2.7957214,799.99,797.95,1.1084401]
[1754833445191,1.1076429,799.09,797.95,1.1084401]
[1754833445392,1.1076429,799.07,797.96,1.1084401]
[1754833445994,0.83555418,798.9,797.96,1.1084401]
[1754833446191,0.83555418,798.9,797.95,1.1084401]
[1754833446792,0.63555418,798.9,797.95,1.1084401]
[1754833447296,1.1076429,799.08,797.95,1.1084401]
[1754833447492,1.1076429,799.08,797.96,1.1084401]
[1754833447698,1.1076429,799.09,797.96,1.1084401]
[1754833447897,1.1076429,799.12,797.93,1.1084401]
[1754833448097,1.1076429,799.13,797.94,1.1084401]
[1754833448292,1.1076429,799.13,797.93,1.1084401]
[1754833448497,1.1076429,799.13,797.99,0.21756391]
[1754833448893,2.7957214,800.07,797.99,0.21756391]
[1754833448894,1.1076429,799.23,797.99,0.21756391]
[1754833449495,1.1076429,799.24,797.99,0.21756391]
[1754833449698,1.1076429,799.25,797.99,0.21756391]
[1754833453897,1.1076429,799.23,797.99,0.21756391]
[1754833454895,1.1076429,799.22,797.99,0.21756391]
[1754833455296,1.1076429,799.2,797.99,0.21756391]
[1754833455497,1.1076429,799.16,797.99,0.21756391]
[1754833455700,1.1076429,799.14,797.99,0.21756391]
[1754833456397,1.1076429,799.13,797.99,0.21756391]
[1754833457301,1.1076429,799.14,797.99,0.21756391]
[1754833457797,1.1076429,799.12,797.99,0.21756391]
[1754833458198,1.1076429,799.13,797.99,0.21756391]
[1754833458702,1.1076429,798.99,797.99,0.21756391]
[1754833459406,1.1076429,798.95,797.99,0.21756391]
[1754833460301,1.1076429,798.96,797.99,0.21756391]
[1754833460500,1.1076429,798.95,797.99,0.21756391]
[1754833460903,1.1076429,798.96,797.99,0.21756391]
[1754833462804,1.1076429,799.04,797.99,0.21756391]
[1754833464403,1.1076429,799.05,797.99,0.21756391]
[1754833464707,1.1076429,799.04,797.99,0.21756391]
[1754833464904,1.1076429,799.12,797.99,0.21756391]
[1754833465304,1.1076429,799.13,797.99,0.21756391]
[1754833466103,1.1076429,799.12,797.99,0.21756391]
[1754833466307,1.1076429,799.1,797.99,0.21756391]
[1754833466504,1.1076429,799.0,797.99,0.21756391]
[1754833466907,1.1076429,798.96,797.99,0.21756391]
[1754833467107,1.1076429,798.94,797.99,0.21756391]
[1754833467403,1.1076429,798.86,797.99,0.21756391]
[1754833468207,1.1076429,798.88,797.99,0.21756391]
[1754833468409,1.1076429,798.87,797.99,0.21756391]
[1754833468605,1.1076429,798.89,797.99,0.21756391]
[1754833469206,1.1076429,798.9,797.99,0.21756391]
[1754833469505,1.1076429,798.91,797.99,0.21756391]
[1754833470205,1.1076429,798.96,797.99,0.21756391]
[1754833470405,1.1076429,798.97,797.99,0.21756391]
[1754833472111,1.1076429,799.01,797.99,0.21756391]
[1754833473318,1.1076429,799.02,797.99,0.21756391]
[1754833474114,1.1076429,799.11,797.99,0.21756391]
[1754833474313,1.1076429,799.13,797.99,0.21756391]
[1754833474914,1.1076429,799.03,797.99,0.21756391]
[1754833476211,1.1076429,799.02,797.99,0.21756391]
[1754833476412,1.1076429,799.09,797.99,0.21756391]
[1754833477311,1.1076429,799.08,797.99,0.21756391]
[1754833477712,1.1076429,799.06,797.99,0.21756391]
[1754833478211,1.1076429,799.05,797.99,0.21756391]
[1754833478416,1.1076429,799.06,797.99,0.21756391]
[1754833479416,1.1076429,799.14,797.99,0.21756391]
[1754833480914,1.1076429,799.16,797.99,0.21756391]
[1754833481319,1.1076429,799.15,797.99,0.21756391]
[1754833481519,1.1076429,799.16,797.99,0.21756391]
[1754833481815,1.1076429,799.14,797.99,0.21756391]
[1754833482519,1.1076429,799.18,797.99,0.21756391]
[1754833483715,1.1076429,799.17,797.99,0.21756391]
[1754833483919,1.1076429,799.23,797.99,0.21756391]
[1754833484118,1.1076429,799.25,798.06,0.5]
[1754833484320,1.1076429,799.25,798.14,0.35]
[1754833484517,1.1076429,799.25,798.08,0.5]
[1754833486424,1.1076429,799.24,798.08,0.5]
[1754833486922,1.1076429,799.25,798.08,0.5]
[1754833487119,1.1076429,799.24,798.08,0.5]
[1754833487419,1.1076429,799.21,798.08,0.5]
[1754833489023,1.1076429,799.21,798.06,0.342]
[1754833489228,1.1076429,799.13,797.99,0.21756391]
[1754833490832,1.1076429,799.14,797.99,0.21756391]
[1754833491233,0.21750068,800.55,798.03,1.1084401]
[1754833491234,1.1076429,799.12,798.03,1.1084401]
[1754833492032,1.1076429,799.12,798.08,0.342]
[1754833492236,1.1076429,799.11,798.07,0.5]
[1754833492435,1.1076429,799.1,798.07,0.5]
[1754833493433,1.1076429,799.1,798.08,0.342]
[1754833493633,1.1076429,799.1,798.07,0.5]
[1754833493933,1.1076429,799.09,798.07,0.5]
[1754833494835,1.1076429,799.11,798.07,0.5]
[1754833495341,1.1076429,799.1,798.07,0.5]
[1754833497338,1.1076429,799.09,798.07,0.5]
[1754833498139,1.1076429,799.09,798.08,0.344]
[1754833498341,1.1076429,799.09,798.07,0.5]
[1754833498740,1.1076429,799.1,798.07,0.5]
[1754833499440,1.1076429,799.09,798.07,0.5]
[1754833499842,1.1076429,799.1,798.05,1.1084401]
[1754833500461,1.1076429,799.13,798.07,1.1084401]
[1754833500648,1.1076429,799.2,798.07,1.1084401]
[1754833500845,1.1076429,799.22,798.19,0.5]
[1754833501152,1.1076429,799.2,798.19,0.5]
[1754833501346,1.1076429,799.21,798.19,0.5]
[1754833502949,1.1076429,799.22,798.19,0.5]
[1754833503148,1.1076429,799.24,798.19,0.5]
[1754833503353,1.1076429,799.29,798.19,0.5]
[1754833504351,1.1076429,799.3,798.19,0.5]
[1754833504552,1.1076429,799.32,798.19,0.5]
[1754833504853,1.1076429,799.42,798.25,1.1084401]
[1754833505053,1.1076429,799.38,798.28,1.1084401]
[1754833505249,3.91401,800.51,798.27,1.1084401]
[1754833505250,1.1076429,799.41,798.27,1.1084401]
[1754833506354,1.1076429,799.42,798.26,1.1084401]
[1754833507054,0.83419153,799.27,798.26,1.1084401]
[1754833507251,0.83419153,799.27,798.25,1.1084401]
[1754833507449,0.83419153,799.28,798.25,1.1084401]
[1754833507654,0.83419153,799.29,798.25,1.1084401]
[1754833507851,0.83419153,799.29,798.41,0.5]
[1754833508354,2.7957214,800.17,798.41,0.5]
[1754833508355,0.83419153,799.3,798.41,0.5]
[1754833508657,0.83419153,799.29,798.41,0.5]
[1754833509452,0.83419153,799.35,798.41,0.5]
[1754833510456,0.83419153,799.36,798.41,0.5]
[1754833510758,0.83419153,799.58,798.5,0.352]
[1754833510960,2.7957214,800.42,798.58,0.5]
[1754833510961,0.61675608,799.6,798.58,0.5]
[1754833511154,1.1076429,799.8,798.58,0.5]
[1754833511456,1.1076429,799.83,798.58,0.5]
[1754833512155,1.1076429,799.87,798.58,0.5]
[1754833512454,1.1076429,799.9,798.58,0.5]
[1754833512658,1.1076429,799.83,798.58,0.5]
[1754833513253,1.1076429,799.84,798.58,0.5]
[1754833513554,1.1076429,799.85,798.58,0.5]
[1754833513959,1.1076429,799.86,798.58,0.5]
[1754833514158,1.1076429,799.93,798.58,0.5]
[1754833514459,1.1076429,799.95,798.58,0.5]
[1754833514859,1.1076429,800.03,798.58,0.5]
[1754833515255,1.1076429,800.17,798.81,0.5]
[1754833515456,1.1076429,800.2,798.81,0.5]
[1754833516259,1.1076429,800.23,798.81,0.5]
[1754833517355,1.1076429,800.26,798.81,0.5]
[1754833518461,1.1076429,800.28,798.81,0.5]
[1754833520158,1.1076429,800.29,798.81,0.5]
[1754833520362,1.1076429,800.3,798.81,0.5]
[1754833521260,1.1076429,800.31,798.81,0.5]
[1754833521859,1.1076429,800.28,798.81,0.5]
[1754833522062,1.1076429,800.14,798.81,0.5]
[1754833522565,1.1076429,800.14,798.65,0.5]
[1754833522967,1.1076429,800.25,798.65,0.5]
[1754833523968,1.1076429,800.22,798.65,0.5]
[1754833524264,1.1076429,800.23,798.65,0.5]
[1754833524670,1.1076429,800.19,798.65,0.5]
[1754833524864,1.1076429,800.08,798.65,0.5]
[1754833525566,1.1076429,800.06,798.65,0.5]
[1754833527766,1.1076429,800.05,798.65,0.5]
[1754833528365,1.1076429,800.04,798.65,0.5]
[1754833529166,1.1076429,800.03,798.65,0.5]
[1754833530272,1.1076429,800.02,798.65,0.5]
[1754833530670,1.1076429,800.0,798.65,0.5]
[1754833531069,1.1076429,799.99,798.65,0.5]
[1754833531372,1.1076429,799.98,798.65,0.5]
[1754833531967,1.6614644,800.17,798.65,0.5]
[1754833531968,1.1076429,799.92,798.65,0.5]
[1754833532171,1.1076429,799.91,798.65,0.5]
[1754833532768,1.1076429,799.86,798.65,0.5]
[1754833533070,1.1076429,799.84,798.65,0.5]
[1754833533268,1.1076429,799.83,798.65,0.5]
[1754833533470,1.1076429,799.88,798.65,0.5]
[1754833533973,1.1076429,799.87,798.65,0.5]
[1754833534371,1.1076429,799.86,798.65,0.5]
[1754833534973,1.1076429,799.88,798.65,0.5]
[1754833535474,1.1076429,799.87,798.65,0.5]
[1754833536174,1.1076429,799.86,798.65,0.5]
[1754833536775,1.1076429,799.78,798.65,0.5]
[1754833536975,1.1076429,799.77,798.65,0.5]
[1754833537678,1.1076429,799.71,798.65,0.5]
[1754833537880,1.1076429,799.72,798.42,0.5]
[1754833538175,1.1076429,799.69,798.42,0.5]
[1754833538375,1.1076429,799.67,798.42,0.5]
[1754833539280,1.1076429,799.66,798.42,0.5]
[1754833539888,1.1076429,799.67,798.42,0.5]
[1754833540080,1.1076429,799.66,798.42,0.5]
[1754833540284,1.1076429,799.65,798.42,0.5]
[1754833540585,1.1076429,799.65,798.38,0.5]
[1754833541081,1.1076429,799.64,798.38,0.5]
[1754833541390,1.1076429,799.63,798.38,0.5]
[1754833543385,1.1076429,799.65,798.38,0.5]
[1754833543583,1.1076429,799.66,798.38,0.5]
[1754833544282,1.1076429,799.65,798.38,0.5]
[1754833544983,1.1076429,799.67,798.38,0.5]
[1754833546286,1.1076429,799.66,798.38,0.5]
[1754833547691,1.1076429,799.65,798.38,0.5]
[1754833548599,1.1076429,799.64,798.38,0.5]
[1754833549487,1.1076429,799.63,798.38,0.5]
[1754833549689,1.1076429,799.78,798.38,0.5]
[1754833549893,1.1076429,799.77,798.38,0.5]
[1754833551192,1.1076429,799.76,798.38,0.5]
[1754833551693,1.1076429,799.78,798.38,0.5]
[1754833552287,1.1076429,799.77,798.38,0.5]
[1754833552489,1.1076429,799.78,798.38,0.5]
[1754833552694,1.1076429,799.81,798.38,0.5]
[1754833553190,1.1076429,799.8,798.38,0.5]
[1754833553389,1.1076429,799.79,798.38,0.5]
[1754833554404,1.1076429,799.84,798.38,0.5]
[1754833555096,1.1076429,799.85,798.38,0.5]
[1754833555390,1.1076429,799.84,798.38,0.5]
[1754833555692,1.1076429,799.85,798.38,0.5]
[1754833555891,1.1076429,799.7,798.39,1.1084401]
[1754833556196,1.1076429,799.69,798.4,1.1084401]
[1754833557296,1.1076429,799.68,798.41,1.1084401]
[1754833557597,1.1076429,799.68,798.4,1.1084401]
[1754833557897,1.1076429,799.68,798.41,1.1084401]
[1754833558294,1.1076429,799.67,798.42,1.1084401]
[1754833558494,1.1076429,799.66,798.42,1.1084401]
[1754833559295,1.1076429,799.65,798.44,1.1084401]
[1754833559596,1.1076429,799.64,798.44,1.1084401]
[1754833560497,1.1076429,799.64,798.45,1.1084401]
[1754833561396,1.1076429,799.63,798.45,1.1084401]
[1754833561700,1.1076429,799.62,798.45,1.1084401]
[1754833561901,1.1076429,799.61,798.42,1.1084401]
[1754833562402,1.1076429,799.6,798.43,1.1084401]
[1754833562903,1.1076429,799.65,798.39,1.1084401]
[1754833563404,1.1076429,799.63,798.41,1.1084401]
[1754833563603,1.1076429,799.63,798.4,1.1084401]
[1754833563899,1.1076429,799.63,798.41,1.1084401]
[1754833564105,1.1076429,799.64,798.4,1.1084401]
[1754833564301,1.1076429,799.63,798.4,1.1084401]
[1754833564601,1.1076429,799.59,798.38,0.5]
[1754833565106,1.1076429,799.66,798.44,1.1084401]
[1754833565404,1.1076429,799.63,798.41,1.1084401]
[1754833565605,1.1076429,799.53,798.38,0.5]
[1754833566804,1.1076429,799.51,798.35,0.21737908]
[1754833567007,1.1076429,799.47,798.35,0.21737908]
[1754833567404,1.1076429,799.48,798.35,0.21737908]
[1754833568210,1.1076429,799.5,798.35,0.21737908]
[1754833570409,1.1076429,799.49,798.35,0.21737908]
[1754833570607,2.7957214,800.37,798.35,0.21737908]
[1754833570608,1.1076429,799.5,798.35,0.21737908]
[1754833571011,0.83429118,799.33,798.35,0.21737908]
[1754833571408,0.83429118,799.31,798.35,0.21737908]
[1754833571607,0.83429118,799.3,798.35,0.21737908]
[1754833571812,0.83429118,799.31,798.35,0.21737908]
[1754833572112,0.83429118,799.3,798.35,0.21737908]
[1754833572412,0.83429118,799.31,798.35,0.21737908]
[1754833573012,0.83429118,799.22,798.35,0.21737908]
[1754833573212,0.83429118,799.2,798.35,0.21737908]
[1754833573511,0.83429118,799.22,798.35,0.21737908]
[1754833574511,0.83429118,799.23,798.35,0.21737908]
[1754833574907,0.83429118,799.14,798.35,0.21737908]
[1754833575813,0.63429118,799.14,798.35,0.21737908]
[1754833576009,1.1076429,799.31,798.35,0.21737908]
[1754833576514,1.1076429,799.32,798.35,0.21737908]
[1754833577015,1.1076429,799.25,798.35,0.21737908]
[1754833577411,1.1076429,799.24,798.35,0.21737908]
[1754833577714,1.1076429,799.23,798.35,0.21737908]
[1754833578811,1.1076429,799.21,798.35,0.21737908]
[1754833579315,1.1076429,799.2,798.35,0.21737908]
[1754833579517,1.1076429,799.21,798.35,0.21737908]
[1754833580416,1.1076429,799.2,798.35,0.21737908]
[1754833580618,1.1076429,799.22,798.35,0.21737908]
[1754833581315,1.1076429,799.24,798.35,0.21737908]
[1754833581814,1.1076429,799.22,798.35,0.21737908]
[1754833582919,1.1076429,799.25,798.35,0.21737908]
[1754833583119,1.1076429,799.3,798.35,0.21737908]
[1754833583421,1.1076429,799.29,798.35,0.21737908]
[1754833584919,1.1076429,799.3,798.35,0.21737908]
[1754833585118,1.1076429,799.29,798.35,0.21737908]